bitfinex/quotes_ETHUSD_20260213
["timestamp","ask_amount","ask_price","bid_price","bid_amount"]
[1770997141301,1.22285267,2044.4,2043.0,1.50160482]
[1770997141710,1.131,2044.3,2043.2,1.50060482]
[1770997142233,1.131,2044.3,2043.0,0.001]
[1770997142387,9.14395121,2044.2,2043.0,0.001]
[1770997142592,7.313326,2044.1,2043.0,0.001]
[1770997142830,3.6183,2044.1,2043.0,0.001]
[1770997143191,1.22309197,2044.0,2043.0,0.001]
[1770997143502,1.22309197,2044.0,2043.2,0.001]
[1770997144238,1.131,2043.9,2043.2,0.001]
[1770997144548,2.013,2043.9,2043.2,0.001]
[1770997144846,1.22309197,2044.0,2043.2,0.001]
[1770997145009,1.132,2043.9,2043.2,0.001]
[1770997145411,1.30757753,2044.4,2043.2,0.001]
[1770997145611,10.942747,2044.2,2043.2,0.001]
[1770997145836,10.688747,2044.2,2043.2,0.001]
[1770997146024,6.02386084,2044.3,2043.2,0.001]
[1770997146919,1.132,2044.2,2043.2,0.001]
[1770997147324,1.132,2044.2,2043.3,1.22351098]
[1770997147506,1.132,2044.2,2043.3,2.7241158]
[1770997147706,0.002,2044.6,2043.4,1.50060482]
[1770997147916,1.22473884,2044.6,2043.4,1.50060482]
[1770997148126,1.22473884,2044.6,2043.3,1.22351098]
[1770997148127,0.002,2044.6,2043.5,26.378592]
[1770997148330,1.22475128,2044.6,2043.6,1.50060482]
[1770997148718,2.35675128,2044.6,2043.6,1.50060482]
[1770997148938,2.35675128,2044.6,2043.3,1.22351098]
[1770997149140,0.002,2044.6,2043.5,15.088257]
[1770997149439,0.002,2044.6,2043.3,3.6441158]
[1770997149638,0.002,2044.6,2043.4,1.50060482]
[1770997150041,0.002,2044.6,2043.6,1.50060482]
[1770997150422,0.002,2044.6,2043.3,2.14351098]
[1770997150423,0.002,2044.6,2043.4,1.50060482]
[1770997151126,1.133,2044.6,2043.3,1.22351098]
[1770997151324,1.133,2044.6,2043.2,4.89504394]
[1770997151325,1.22279285,2044.5,2043.2,4.89504394]
[1770997152052,14.36770621,2044.4,2043.2,0.001]
[1770997152347,11.07123412,2044.3,2043.2,0.001]
[1770997152538,1.05033291,2044.2,2043.2,0.001]
[1770997152714,1.131,2044.1,2043.2,0.001]
[1770997152911,1.57662521,2044.3,2043.2,0.001]
[1770997153252,3.138169,2044.4,2043.2,0.001]
[1770997153437,6.20074896,2044.6,2043.2,0.001]
[1770997153438,1.131,2044.3,2043.2,0.001]
[1770997154316,2.6269549,2044.2,2043.2,0.001]
[1770997154639,1.57662521,2044.2,2043.2,0.001]
[1770997155018,2.62698926,2044.1,2043.2,0.001]
[1770997155257,1.57662521,2044.1,2043.2,0.001]
[1770997155441,1.22309197,2044.0,2043.2,0.001]
[1770997156156,2.79971718,2044.0,2043.2,0.001]
[1770997156646,1.22309197,2044.0,2043.2,0.001]
[1770997157050,1.131,2043.9,2043.2,0.001]
[1770997157548,1.22321166,2043.8,2043.2,0.001]
[1770997159089,1.05149529,2043.7,2042.5,0.001]
[1770997159287,1.05149529,2043.7,2042.5,1.22497639]
[1770997159288,1.132,2043.7,2042.5,1.22497639]
[1770997159456,1.133,2043.8,2042.6,1.50060482]
[1770997161489,1.133,2043.8,2042.8,1.50060482]
[1770997161490,1.22326394,2043.8,2042.8,1.50060482]
[1770997162788,1.22326394,2043.8,2042.6,1.22389744]
[1770997163368,1.132,2043.7,2042.6,1.22389744]
[1770997163590,1.22333137,2043.6,2042.6,1.22389744]
[1770997164201,2.35530471,2043.7,2042.7,1.50060482]
[1770997164791,1.132,2043.7,2042.7,1.50060482]
[1770997165112,4.89265629,2043.9,2042.6,1.22389744]
[1770997165113,1.22319103,2043.9,2042.6,1.22389744]
[1770997165278,1.22319103,2043.9,2042.7,1.50060482]
[1770997165484,4.89260727,2044.3,2042.9,1.50060482]
[1770997165709,2.18447658,2044.2,2042.9,1.50060482]
[1770997165929,4.89260727,2044.3,2043.0,2.41960482]
[1770997166211,0.002,2044.4,2043.5,1.50060482]
[1770997166390,1.22485309,2044.4,2043.5,0.919]
[1770997166576,1.22485309,2044.4,2043.4,0.919]
[1770997166780,1.22485309,2044.4,2043.3,0.919]
[1770997166985,1.132,2044.3,2043.3,0.919]
[1770997167501,1.22485309,2044.4,2043.4,1.50060482]
[1770997167704,0.002,2044.4,2043.6,1.50060482]
[1770997168495,0.002,2044.4,2043.5,1.22339124]
[1770997168701,0.002,2044.6,2043.8,30.0]
[1770997168886,0.002,2044.8,2044.2,1.50060482]
[1770997169078,0.002,2044.8,2044.3,1.50060482]
[1770997169704,0.002,2044.8,2044.4,1.22285267]
[1770997169907,0.002,2044.8,2044.5,0.919]
[1770997170104,0.002,2045.3,2044.6,1.50060482]
[1770997171002,0.002,2045.3,2044.7,0.882]
[1770997171315,0.002,2045.8,2045.0,1.56485107]
[1770997171512,0.002,2045.8,2045.1,0.92]
[1770997171679,0.002,2045.8,2045.2,1.22237433]
[1770997171881,0.002,2046.0,2045.4,1.56485107]
[1770997172315,0.002,2046.0,2045.2,2.7872254]
[1770997172536,1.22163572,2046.5,2045.5,1.56485107]
[1770997172825,5.76962452,2046.9,2045.5,1.56485107]
[1770997172826,0.884,2046.9,2045.7,1.56485107]
[1770997173006,0.002,2046.9,2045.9,1.56485107]
[1770997173418,1.22335928,2046.9,2045.1,6.45434842]
[1770997173585,1.46134713,2046.7,2045.2,2.14337433]
[1770997173782,1.22153816,2046.6,2045.3,1.56485107]
[1770997174631,1.22153816,2046.6,2045.2,1.22237433]
[1770997174813,1.22153816,2046.6,2045.3,0.921]
[1770997175015,1.22153816,2046.6,2045.3,2.48585107]
[1770997175748,4.88615264,2046.7,2045.4,1.22225481]
[1770997176344,4.88615264,2046.7,2045.5,0.921]
[1770997176650,6.31660553,2046.7,2045.5,0.921]
[1770997176949,6.31660553,2046.7,2045.3,1.22231022]
[1770997177116,1.43045289,2046.5,2045.0,2.14349388]
[1770997177318,4.88615264,2046.7,2044.3,4.89129758]
[1770997177319,1.43045289,2046.3,2044.4,2.72527823]
[1770997177536,1.43045289,2046.1,2044.6,2.496141]
[1770997177740,4.88734665,2046.2,2044.8,1.22261345]
[1770997177930,1.22183666,2046.1,2044.8,1.22261345]
[1770997178346,2.65228955,2046.1,2044.8,1.22261345]
[1770997178544,2.65228955,2046.1,2044.9,0.921]
[1770997179268,1.22183666,2046.1,2044.9,0.921]
[1770997179943,1.22183666,2046.1,2045.0,1.22249388]
[1770997180144,1.22183666,2046.1,2044.9,0.921]
[1770997180373,1.22183666,2046.1,2044.9,2.143527]
[1770997180658,1.22183666,2046.1,2044.9,2.14355356]
[1770997180827,1.43045289,2046.0,2044.9,0.921]
[1770997181153,1.43045289,2046.0,2043.6,2.38348538]
[1770997181154,13.687801,2045.4,2043.6,2.38348538]
[1770997181354,1.43045289,2045.2,2043.7,0.921]
[1770997181721,1.43045289,2045.0,2043.7,0.921]
[1770997181926,2.65300656,2044.9,2044.8,0.001]
[1770997182225,2.65300656,2044.9,2043.7,2.14425192]
[1770997182476,4.88903119,2045.4,2043.9,1.50348538]
[1770997182679,2.56145289,2045.5,2044.0,2.2348]
[1770997182953,0.881,2045.8,2043.9,1.50348538]
[1770997182954,4.88811312,2045.8,2044.1,1.50248538]
[1770997183162,4.88811312,2045.8,2043.9,0.001]
[1770997183163,1.131,2045.6,2044.3,2.7328]
[1770997183458,1.131,2045.6,2044.2,2.42248538]
[1770997183459,1.131,2045.6,2044.2,0.92]
[1770997184436,1.22219506,2045.5,2044.3,2.72539786]
[1770997184836,1.22219506,2045.5,2044.3,1.22291248]
[1770997185369,1.43045289,2045.2,2043.9,0.001]
[1770997185566,1.131,2045.1,2043.9,1.22414019]
[1770997186123,1.131,2045.1,2043.9,1.22414517]
[1770997186323,1.22249388,2045.0,2043.9,0.001]
[1770997186528,1.43045289,2044.9,2043.9,0.001]
[1770997187886,2.10349388,2045.0,2043.9,0.001]
[1770997188669,2.10349388,2045.0,2044.0,0.921]
[1770997189049,1.22247171,2045.1,2044.0,0.921]
[1770997189268,1.22242225,2045.2,2044.0,0.921]
[1770997189674,1.22242225,2045.2,2044.0,1.802]
[1770997190399,1.22242225,2045.2,2044.1,1.22303214]
[1770997190605,4.2348894,2046.5,2044.1,1.22303214]
[1770997190606,4.89005526,2045.9,2044.1,1.22303214]
[1770997190789,2.35313531,2045.6,2044.2,1.50248538]
[1770997191363,2.35313531,2045.6,2044.3,0.1024]
[1770997191661,2.35313531,2045.6,2044.0,6.69412856]
[1770997191662,1.43045289,2045.2,2044.0,0.881]
[1770997191884,1.43045289,2045.0,2044.0,0.881]
[1770997192082,1.132,2045.1,2044.0,2.10409169]
[1770997192411,1.22249388,2045.0,2044.0,0.881]
[1770997192605,1.22249388,2045.0,2043.9,0.001]
[1770997192606,2.65294677,2045.0,2043.9,0.001]
[1770997192944,2.65294677,2045.0,2043.9,1.22413639]
[1770997193076,2.65294677,2045.0,2043.9,0.001]
[1770997193389,1.22249388,2045.0,2043.9,0.001]
[1770997193599,1.43045289,2044.9,2043.9,0.001]
[1770997194009,1.43045289,2044.9,2043.9,1.2241409]
[1770997194188,1.43045289,2044.9,2043.9,0.001]
[1770997194364,1.22261345,2044.8,2044.1,0.001]
[1770997195672,1.133,2044.7,2044.1,0.001]
[1770997196416,1.22273305,2044.6,2044.1,0.001]
[1770997197500,1.43045289,2044.4,2043.1,1.22360341]
[1770997197704,1.134,2044.3,2043.1,1.22360341]
[1770997198201,1.134,2044.3,2043.2,1.50248538]
[1770997198509,2.35691474,2044.3,2043.3,1.22351098]
[1770997199247,2.35691749,2044.3,2043.3,1.22351098]
[1770997200265,2.35691749,2044.3,2043.1,4.89445329]
[1770997200463,2.35691749,2044.3,2043.0,1.22463075]
[1770997200668,2.35691749,2044.3,2043.0,2.63976414]
[1770997200869,1.22291749,2044.3,2043.1,1.41513339]
[1770997201375,1.22291749,2044.3,2043.0,1.22463075]
[1770997201766,1.37436451,2044.2,2043.0,0.001]
[1770997202211,2.35691749,2044.3,2043.0,0.001]
[1770997202865,1.134,2044.3,2043.1,23.93457939]
[1770997203064,2.35691284,2044.3,2043.2,5.577736]
[1770997203269,2.35691284,2044.3,2043.1,1.41513339]
[1770997203466,2.35691284,2044.3,2043.1,2.261075]
[1770997203903,2.35691284,2044.3,2043.0,0.001]
[1770997203904,3.73127735,2044.3,2043.0,0.001]
[1770997204206,2.35691284,2044.3,2043.1,4.25608]
[1770997204406,2.35691284,2044.3,2043.1,3.732543]
[1770997204617,3.73127735,2044.3,2043.1,1.22360592]
[1770997204984,1.37436451,2044.2,2043.1,1.22360592]
[1770997205410,18.238949,2044.1,2043.0,0.001]
[1770997205623,1.37436451,2044.0,2043.0,1.22468978]
[1770997205798,1.135,2043.9,2043.0,0.001]
[1770997205998,2.50936451,2043.9,2043.0,0.001]
[1770997206317,1.37436451,2043.8,2043.0,0.001]
[1770997206818,1.22327151,2043.7,2043.2,0.001]
[1770997207425,2.59763602,2043.7,2043.2,0.001]
[1770997207602,1.37436451,2043.6,2043.0,0.001]
[1770997207800,1.136,2043.5,2043.0,0.001]
[1770997208542,1.37436451,2043.4,2042.5,0.001]
[1770997208685,1.136,2043.5,2042.5,0.001]
[1770997208686,1.37436451,2043.3,2042.5,0.001]
[1770997209032,1.37436451,2043.1,2042.5,0.001]
[1770997209201,2.51136451,2043.0,2042.3,0.001]
[1770997209412,1.137,2042.9,2042.3,0.001]
[1770997209808,1.22357086,2043.2,2042.3,0.001]
[1770997210013,1.137,2043.1,2042.3,0.001]
[1770997210535,2.10546876,2043.4,2042.3,0.001]
[1770997211402,3.47983327,2043.4,2042.2,1.17517001]
[1770997211601,3.47983327,2043.4,2042.1,1.22518811]
[1770997211868,1.37436451,2043.3,2042.1,0.001]
[1770997212024,2.51236451,2043.2,2042.1,1.22521854]
[1770997212217,1.37436451,2043.2,2042.1,1.22521854]
[1770997212423,1.138,2043.2,2042.1,1.22521854]
[1770997212624,2.51236451,2043.2,2042.1,1.22521854]
[1770997212854,1.37436451,2043.0,2042.1,0.001]
[1770997214432,1.138,2043.0,2042.1,0.001]
[1770997214758,1.22375055,2042.9,2042.1,0.001]
[1770997215623,1.37436451,2042.8,2042.1,0.001]
[1770997216831,1.22387036,2042.7,2042.1,0.001]
[1770997217357,2.59823487,2042.7,2042.1,0.001]
[1770997217825,1.37436451,2042.6,2041.7,0.001]
[1770997218025,1.22387036,2042.7,2041.7,0.001]
[1770997218460,1.37436451,2042.3,2040.7,30.0]
[1770997218663,1.37436451,2042.1,2040.7,30.917]
[1770997218887,1.37436451,2042.1,2040.5,0.882]
[1770997219186,1.37436451,2042.1,2039.6,3.49024553]
[1770997219187,1.37436451,2041.3,2039.6,3.49024553]
[1770997219375,1.138,2041.2,2039.7,2.160451]
[1770997219565,2.51236451,2041.2,2039.7,2.160451]
[1770997220274,2.51236451,2041.2,2039.7,2.987578]
[1770997220479,2.51236451,2041.2,2039.7,4.335947]
[1770997220480,1.37436451,2041.1,2039.7,4.335947]
[1770997220678,1.37436451,2040.5,2039.0,2.64122461]
[1770997220854,2.431947,2040.0,2039.2,1.22597096]
[1770997221055,2.431947,2040.3,2039.3,1.41513339]
[1770997221256,2.431947,2040.3,2039.2,1.22597096]
[1770997221257,2.431947,2040.4,2039.5,1.51753339]
[1770997221455,2.431947,2040.5,2039.7,1.41513339]
[1770997221655,2.371947,2040.8,2040.0,1.51753339]
[1770997221942,2.27383415,2041.1,2040.2,1.41513339]
[1770997222154,2.59886766,2041.7,2040.3,16.685829]
[1770997222370,2.46903894,2041.7,2040.3,7.391557]
[1770997222556,1.22450315,2041.7,2040.3,7.391557]
[1770997222754,1.22450315,2041.7,2040.3,1.41513339]
[1770997222943,4.89772913,2041.8,2040.5,1.2251899]
[1770997223150,4.89772913,2041.8,2040.6,0.918]
[1770997223379,6.27209364,2041.8,2040.6,0.918]
[1770997223882,9.32599372,2042.3,2040.6,0.918]
[1770997223883,2.59823487,2042.7,2041.0,7.129622]
[1770997224180,1.37436451,2042.5,2040.7,0.1024]
[1770997224387,1.37436451,2042.3,2040.5,2.64032329]
[1770997224589,1.37436451,2042.1,2040.7,8.832717]
[1770997224758,1.37436451,2042.1,2040.6,0.918]
[1770997224954,1.22426847,2042.1,2040.8,1.2250098]
[1770997225187,1.22405013,2042.4,2041.0,13.558437]
[1770997225387,1.22405013,2042.4,2041.0,10.042288]
[1770997225768,1.22405013,2042.4,2040.9,1.41513339]
[1770997225967,1.37436451,2042.3,2040.9,0.1024]
[1770997226160,1.37436451,2042.3,2041.0,0.919]
[1770997226363,1.37436451,2042.3,2040.8,1.2250098]
[1770997226564,1.37436451,2042.3,2040.9,1.801]
[1770997227280,1.37436451,2042.3,2041.0,1.22488975]
[1770997227281,1.22417001,2042.2,2041.0,1.22488975]
[1770997227788,1.22417001,2042.2,2040.8,2.14396318]
[1770997227789,1.37436451,2042.0,2040.8,2.14396318]
[1770997228366,1.37436451,2042.0,2040.4,1.22524995]
[1770997228560,1.37436451,2041.8,2040.4,1.22524995]
[1770997229662,1.2244698,2041.7,2040.4,1.22524995]
[1770997229889,2.59883431,2041.7,2040.4,1.22524995]
[1770997230089,2.59883431,2041.7,2040.5,0.919]
[1770997230261,2.59883431,2041.7,2040.4,1.22524995]
[1770997230683,1.41552578,2041.6,2040.4,1.22524995]
[1770997230906,1.41552578,2041.4,2040.2,1.22532985]
[1770997231712,1.22470974,2041.3,2040.1,4.90170337]
[1770997231912,1.41552578,2041.2,2040.0,1.22543012]
[1770997232065,1.41552578,2041.2,2039.5,5.40727]
[1770997232066,1.41552578,2041.1,2039.5,5.40727]
[1770997232272,1.41552578,2040.7,2039.9,0.001]
[1770997232505,1.138,2040.6,2039.3,1.22591085]
[1770997232662,1.138,2040.6,2039.7,0.001]
[1770997233901,1.2251899,2040.5,2039.7,1.22667044]
[1770997234108,1.2251899,2040.5,2039.7,0.001]
[1770997234985,2.64071568,2040.5,2039.7,0.001]
[1770997235189,1.41552578,2040.4,2039.0,1.22607499]
[1770997235706,1.138,2040.3,2039.0,1.22607499]
[1770997235922,1.138,2040.3,2038.9,5.04086317]
[1770997235923,2.64089584,2040.2,2038.9,1.36254042]
[1770997236308,1.22537006,2040.2,2038.9,1.36254042]
[1770997236691,1.138,2040.4,2039.0,27.06863729]
[1770997236899,2.3631899,2040.5,2039.0,1.38947629]
[1770997237411,3.78175386,2040.5,2039.0,10.864407]
[1770997237613,3.78175386,2040.5,2039.2,28.361517]
[1770997237614,1.138,2040.5,2039.2,28.361517]
[1770997237815,4.90038816,2040.7,2039.4,1.22585074]
[1770997238133,6.31895212,2040.7,2039.0,1.22609122]
[1770997238319,6.31895212,2040.7,2039.2,0.92]
[1770997238482,1.41856396,2040.6,2039.2,0.92]
[1770997239185,5.26938896,2040.5,2039.2,0.92]
[1770997239391,1.138,2040.4,2039.2,0.92]
[1770997239991,1.22531,2040.3,2039.2,0.92]
[1770997240196,1.22531,2040.3,2039.2,2.14595648]
[1770997240523,1.22531,2040.3,2038.9,1.12182]
[1770997240524,2.64387396,2040.3,2039.0,1.22609122]
[1770997241802,1.22531,2040.3,2039.0,1.22609122]
[1770997242222,1.17531,2040.3,2039.0,1.22609122]
[1770997242598,2.59387396,2040.3,2039.0,2.14709122]
[1770997242804,1.41856396,2040.2,2039.0,2.14709122]
[1770997243012,1.41856396,2040.2,2039.0,0.921]
[1770997243644,1.41856396,2040.0,2038.5,1.46913615]
[1770997243802,1.14,2039.9,2038.5,2.39013615]
[1770997244138,1.22561035,2039.8,2038.5,2.39013615]
[1770997244298,1.22561035,2039.8,2038.5,1.46913615]
[1770997244501,1.22561035,2039.8,2038.6,0.921]
[1770997244716,2.64417431,2039.8,2038.5,1.46913615]
[1770997244919,2.64417431,2039.8,2038.6,0.921]
[1770997245119,2.64417431,2039.8,2038.6,2.28417437]
[1770997245120,1.22561035,2039.8,2038.6,2.28417437]
[1770997245318,1.22561035,2039.8,2039.2,0.001]
[1770997245802,4.90220108,2040.1,2039.2,0.001]
[1770997247030,0.002,2040.3,2039.2,0.001]
[1770997247232,1.22732441,2040.3,2039.3,0.921]
[1770997247543,0.002,2040.3,2039.4,0.92]
[1770997247831,1.2273115,2040.3,2039.5,0.92]
[1770997248223,0.002,2040.3,2039.6,1.22573053]
[1770997248410,0.002,2040.3,2039.2,1.22692214]
[1770997248818,0.002,2040.3,2039.2,2.59009651]
[1770997249627,0.002,2040.3,2039.3,1.36317437]
[1770997250224,0.002,2040.3,2039.4,1.22585074]
[1770997250662,0.002,2040.3,2039.4,2.58902511]
[1770997250953,0.002,2040.5,2039.4,2.58902511]
[1770997250954,0.002,2040.5,2039.7,1.36317437]
[1770997251155,0.002,2040.5,2039.7,0.921]
[1770997252348,0.002,2040.5,2039.8,1.22561035]
[1770997252521,0.002,2040.5,2039.8,2.58878472]
[1770997253122,0.002,2040.5,2039.9,1.36317437]
[1770997253323,1.22481364,2041.2,2039.9,1.36317437]
[1770997253324,1.22481002,2041.2,2039.9,1.36317437]
[1770997253928,1.22475011,2041.3,2040.0,1.46557437]
[1770997254126,1.22469574,2041.4,2040.0,1.46557437]
[1770997254355,2.36563476,2041.5,2040.2,1.36317437]
[1770997254563,2.36559357,2041.5,2040.3,3.16817437]
[1770997254764,1.141,2041.5,2040.3,3.16817437]
[1770997254963,0.002,2041.5,2040.5,1.36317437]
[1770997255166,0.002,2041.5,2040.7,0.1024]
[1770997255368,0.002,2041.7,2041.0,1.46557437]
[1770997255537,1.22415198,2042.3,2041.2,5.639186]
[1770997255737,1.22415198,2042.3,2041.1,2.24617437]
[1770997255738,2.10703693,2042.5,2041.3,2.28517437]
[1770997256367,2.10703693,2042.5,2041.4,1.22464975]
[1770997256968,0.883,2042.5,2041.4,2.58782412]
[1770997257176,0.883,2042.5,2041.5,0.1024]
[1770997257374,0.002,2042.6,2041.5,1.46557437]
[1770997258143,0.883,2043.3,2042.1,1.36317437]
[1770997258349,1.22339124,2043.5,2042.3,1.22411007]
[1770997258965,2.51556396,2043.8,2042.5,15.487776]
[1770997258966,1.22327151,2043.7,2042.5,15.487776]
[1770997259292,1.22309197,2044.0,2042.7,1.36317437]
[1770997259643,1.22309197,2044.0,2042.8,1.46557437]
[1770997260196,0.002,2043.4,2043.0,1.36317437]
[1770997260346,4.89414279,2044.1,2043.1,1.22363075]
[1770997260546,0.002,2044.1,2043.1,1.46557437]
[1770997261300,0.002,2044.1,2043.3,1.42503141]
[1770997261461,0.002,2044.3,2043.6,1.32263141]
[1770997261775,0.002,2044.3,2043.7,0.883]
[1770997262361,0.002,2044.3,2043.8,1.22321166]
[1770997262557,0.002,2044.3,2042.9,2.10669065]
[1770997262759,0.002,2044.3,2043.0,1.22369065]
[1770997263072,0.002,2044.3,2043.0,3.02869065]
[1770997263464,0.002,2044.3,2043.3,1.42503141]
[1770997264452,0.002,2044.3,2043.4,0.923]
[1770997265475,1.3027058,2044.3,2042.9,5.77681257]
[1770997265679,0.002,2044.3,2043.2,0.922]
[1770997266392,0.002,2044.3,2043.3,1.22351098]
[1770997266907,0.002,2044.3,2043.2,0.922]
[1770997267057,0.002,2044.3,2043.2,2.14552654]
[1770997268252,1.3027058,2044.3,2042.2,4.89632561]
[1770997268457,1.22297231,2044.2,2042.6,0.1024]
[1770997268688,1.22297231,2044.2,2042.6,1.42503141]
[1770997268861,1.22494545,2044.3,2042.9,1.42503141]
[1770997269068,1.22494545,2044.3,2043.0,2.24463141]
[1770997269395,1.3007058,2044.2,2042.6,0.1024]
[1770997269606,1.3007058,2044.2,2042.7,0.922]
[1770997269763,1.22494545,2044.3,2042.8,1.42503141]
[1770997270280,1.3007058,2044.2,2042.5,1.2239902]
[1770997270468,1.3007058,2044.0,2042.6,1.804]
[1770997271498,1.3007058,2044.0,2043.4,0.001]
[1770997271689,1.3007058,2044.0,2042.6,0.922]
[1770997271893,1.3007058,2043.8,2042.6,0.922]
[1770997272197,1.3007058,2043.8,2043.2,0.001]
[1770997272373,1.22333137,2043.6,2042.6,0.922]
[1770997272576,1.22333137,2043.6,2042.4,5.81718195]
[1770997272777,1.22333137,2043.6,2042.4,0.921]
[1770997272976,1.22333137,2043.6,2042.3,0.001]
[1770997272977,1.3007058,2043.2,2042.3,0.001]
[1770997273683,1.3007058,2043.1,2042.3,0.001]
[1770997274088,3.3147058,2043.5,2042.3,1.22510011]
[1770997274381,2.52421678,2043.3,2042.3,0.001]
[1770997274792,1.22351098,2043.3,2042.3,0.001]
[1770997276597,1.3007058,2043.2,2042.3,0.001]
[1770997276766,1.3007058,2043.1,2041.7,2.10646245]
[1770997277410,1.3007058,2042.9,2041.7,0.882]
[1770997277698,1.3007058,2042.7,2041.2,0.92]
[1770997278102,1.3007058,2042.6,2041.2,0.92]
[1770997278474,1.2239902,2042.5,2041.3,1.22470974]
[1770997278780,2.524696,2042.5,2041.3,1.22470974]
[1770997278985,1.2239902,2042.5,2041.3,1.22470974]
[1770997279393,1.3007058,2042.4,2040.5,12.68108349]
[1770997279589,1.3007058,2042.4,2040.7,2.324077]
[1770997279792,1.3007058,2042.4,2040.8,1.32263141]
[1770997280304,1.3007058,2042.4,2040.9,22.25142]
[1770997280506,4.89527029,2042.8,2041.2,2.54740115]
[1770997280713,4.89527029,2042.8,2041.3,0.92]
[1770997280912,4.89527029,2042.8,2041.4,0.882]
[1770997281505,1.3007058,2042.6,2041.4,0.882]
[1770997281688,4.89527029,2042.8,2041.4,0.882]
[1770997282718,1.22381045,2042.9,2041.5,1.22458976]
[1770997283377,1.22381045,2042.9,2041.5,2.54722117]
[1770997283574,1.22381045,2042.9,2041.5,1.22458976]
[1770997283575,2.52451625,2042.9,2041.5,1.22458976]
[1770997284008,2.52451625,2042.9,2041.6,3.12463141]
[1770997284009,1.22381045,2042.9,2041.6,3.12463141]
[1770997284216,2.35573941,2043.0,2041.8,1.32263141]
[1770997284390,2.35569519,2043.0,2041.8,1.32263141]
[1770997284595,2.35569519,2043.0,2041.9,1.22434987]
[1770997284801,1.22369519,2043.0,2041.9,1.22434987]
[1770997285313,5.7767626,2043.1,2041.9,1.22434987]
[1770997285314,0.882,2043.1,2042.0,0.1024]
[1770997285487,1.22351098,2043.3,2042.0,0.1024]
[1770997285890,1.22351098,2043.3,2042.0,1.42503141]
[1770997286215,4.89348981,2043.6,2042.2,1.32263141]
[1770997286421,4.89348981,2043.6,2042.3,1.802]
[1770997286605,1.22351098,2043.3,2042.4,1.22405013]
[1770997287007,1.22351098,2043.3,2042.3,2.14406389]
[1770997287892,4.89322554,2043.7,2042.3,2.14406389]
[1770997288185,10.13332222,2042.7,2041.3,1.22470974]
[1770997288426,2.4337058,2042.6,2041.0,0.92]
[1770997288590,9.65437762,2042.9,2041.2,1.22476974]
[1770997288790,4.345301,2042.7,2041.2,1.22476974]
[1770997289031,1.133,2042.6,2041.2,2.54740115]
[1770997289194,1.133,2042.6,2041.3,1.32263141]
[1770997289706,1.3007058,2042.7,2041.2,1.22476974]
[1770997289899,1.3007058,2042.7,2041.1,1.22478515]
[1770997290084,1.3007058,2042.5,2041.0,0.92]
[1770997290316,1.3007058,2042.5,2041.0,0.921]
[1770997290783,2.53084235,2042.4,2041.1,1.22482974]
[1770997291487,1.22405013,2042.4,2041.2,1.29346297]
[1770997291692,2.10597133,2042.6,2041.3,1.28022126]
[1770997291892,2.10597133,2042.6,2041.4,1.802]
[1770997292301,2.10597133,2042.6,2041.1,1.32722974]
[1770997292507,2.10597133,2042.6,2041.2,1.803]
[1770997292828,0.882,2042.6,2041.4,2.50487101]
[1770997293128,1.22384327,2042.8,2041.6,1.28022126]
[1770997293421,1.22363075,2043.1,2041.6,1.28022126]
[1770997294625,1.22363075,2043.1,2041.4,1.22464975]
[1770997294626,1.22363075,2043.1,2041.7,1.28022126]
[1770997294807,1.22363075,2043.1,2041.9,1.22434987]
[1770997295007,1.22363075,2043.1,2042.0,0.882]
[1770997295609,1.22351098,2043.3,2042.0,0.882]
[1770997295915,1.22351098,2043.3,2042.0,2.16222126]
[1770997296313,0.002,2042.9,2042.0,2.16222126]
[1770997296698,0.002,2042.9,2042.1,1.22422995]
[1770997297098,0.002,2042.9,2041.7,4.89766424]
[1770997297328,0.002,2042.9,2041.8,0.923]
[1770997297531,1.138,2042.9,2041.8,0.923]
[1770997297828,7.73768303,2042.5,2041.3,0.923]
[1770997298036,1.26871803,2042.4,2041.3,0.923]
[1770997298276,1.26871803,2042.4,2041.0,1.22488975]
[1770997298277,2.40471803,2042.4,2041.0,1.22488975]
[1770997298395,2.40471803,2042.4,2041.2,0.923]
[1770997298595,1.26871803,2042.3,2040.8,0.001]
[1770997298828,1.26871803,2041.9,2040.8,0.001]
[1770997299037,1.135,2041.8,2040.8,0.001]
[1770997299614,1.26871803,2041.6,2040.5,0.001]
[1770997299753,1.26871803,2041.4,2040.5,0.001]
[1770997299937,1.05165642,2041.3,2040.5,0.001]
[1770997300135,1.138,2041.2,2040.5,0.001]
[1770997300518,1.26871803,2041.8,2040.5,0.001]
[1770997300728,1.05085583,2041.7,2040.5,0.001]
[1770997300927,1.138,2041.9,2040.6,12.502752]
[1770997301246,1.22435595,2041.9,2040.7,10.786052]
[1770997301552,1.22435595,2041.9,2040.6,1.23716429]
[1770997301927,2.10632809,2042.0,2040.6,1.23716429]
[1770997302129,4.89678678,2042.2,2040.7,1.33956429]
[1770997302652,4.89678678,2042.2,2040.8,22.496436]
[1770997302852,4.89678678,2042.2,2040.9,1.22494977]
[1770997303052,4.89678678,2042.2,2041.0,1.807]
[1770997303353,1.138,2042.3,2041.0,1.807]
[1770997303535,1.22408883,2042.4,2041.1,1.23716429]
[1770997304351,1.22408883,2042.4,2041.2,0.1024]
[1770997304651,1.22408883,2042.4,2041.3,1.808]
[1770997304955,1.26871803,2042.5,2041.3,1.808]
[1770997305259,1.26871803,2042.3,2040.7,0.1024]
[1770997305442,1.26871803,2042.3,2040.5,5.78351945]
[1770997305443,1.26871803,2041.9,2040.5,1.22617305]
[1770997305644,2.19126235,2042.2,2040.5,1.22617305]
[1770997305645,1.28755462,2042.4,2040.6,8.978716]
[1770997305865,4.34405803,2042.3,2040.6,8.978716]
[1770997306066,1.05134,2042.2,2040.6,7.543216]
[1770997306363,1.143,2042.2,2040.8,14.132137]
[1770997306543,1.26871803,2042.3,2040.9,0.882]
[1770997306749,0.882,2042.5,2041.0,0.929]
[1770997306949,1.22405013,2042.4,2041.1,1.22482974]
[1770997307378,5.77820054,2042.5,2041.2,17.434472]